Workbook

Sheet Sheet2
A1: 瑶海区2019年下半年公开招聘警务辅助人员面试成绩及综合成绩
A2: 序号 | B2: 岗位名称 | C2: 性别 | D2: 笔试准考证号 | E2: 考场 | F2: 笔试成绩 | G2: 面试抽签号 | H2: 面试成绩 | I2: 综合成绩
A3: 1 | B3: 警务辅助人员 | C3: 男 | D3: 190922001 | E3: 第一考场 | F3: 68.4 | G3: 9 | H3: 79.84 | I3: =(F3+H3)*0.5 -> 74.12
A4: 2 | B4: 警务辅助人员 | C4: 男 | D4: 190922002 | E4: 第一考场 | F4: 54.8 | G4: 8 | H4: 79.34 | I4: =(F4+H4)*0.5 -> 67.07
A5: 3 | B5: 警务辅助人员 | C5: 男 | D5: 190922005 | E5: 第一考场 | F5: 69.2 | G5: 2 | H5: 80.30 | I5: =(F5+H5)*0.5 -> 74.75
A6: 4 | B6: 警务辅助人员 | C6: 男 | D6: 190922007 | E6: 第一考场 | F6: 64.4 | G6: 39 | H6: 76.42 | I6: =(F6+H6)*0.5 -> 70.41
A7: 5 | B7: 警务辅助人员 | C7: 男 | D7: 190922008 | E7: 第一考场 | F7: 59.2 | G7: 6 | H7: 82.34 | I7: =(F7+H7)*0.5 -> 70.77
A8: 6 | B8: 警务辅助人员 | C8: 男 | D8: 190922009 | E8: 第一考场 | F8: 55.8 | G8: 43 | H8: 80.84 | I8: =(F8+H8)*0.5 -> 68.32
A9: 7 | B9: 警务辅助人员 | C9: 男 | D9: 190922010 | E9: 第一考场 | F9: 66 | G9: 30 | H9: 79.26 | I9: =(F9+H9)*0.5 -> 72.63
A10: 8 | B10: 警务辅助人员 | C10: 男 | D10: 190922011 | E10: 第一考场 | F10: 51.8 | G10: 16 | H10: 77.94 | I10: =(F10+H10)*0.5 -> 64.87
A11: 9 | B11: 警务辅助人员 | C11: 男 | D11: 190922014 | E11: 第一考场 | F11: 52.2 | G11: 13 | H11: 75.92 | I11: =(F11+H11)*0.5 -> 64.06
A12: 10 | B12: 警务辅助人员 | C12: 男 | D12: 190922015 | E12: 第一考场 | F12: 62.8 | G12: 34 | H12: 81.3 | I12: =(F12+H12)*0.5 -> 72.05
A13: 11 | B13: 警务辅助人员 | C13: 男 | D13: 190922016 | E13: 第一考场 | F13: 62.4 | G13: 21 | H13: 77.68 | I13: =(F13+H13)*0.5 -> 70.04
A14: 12 | B14: 警务辅助人员 | C14: 男 | D14: 190922017 | E14: 第一考场 | F14: 62 | G14: 25 | H14: 73.72 | I14: =(F14+H14)*0.5 -> 67.86
A15: 13 | B15: 警务辅助人员 | C15: 男 | D15: 190922018 | E15: 第一考场 | F15: 49.6 | G15: 41 | H15: 76.5 | I15: =(F15+H15)*0.5 -> 63.05
A16: 14 | B16: 警务辅助人员 | C16: 男 | D16: 190922020 | E16: 第一考场 | F16: 51.8 | G16: 33 | H16: 79.04 | I16: =(F16+H16)*0.5 -> 65.42
A17: 15 | B17: 警务辅助人员 | C17: 男 | D17: 190922021 | E17: 第一考场 | F17: 62 | G17: 44 | H17: 82.56 | I17: 72.28
A18: 16 | B18: 警务辅助人员 | C18: 男 | D18: 190922023 | E18: 第一考场 | F18: 55.6 | G18: 37 | H18: 78.9 | I18: 67.25
A19: 17 | B19: 警务辅助人员 | C19: 男 | D19: 190922024 | E19: 第一考场 | F19: 49 | G19: 3 | H19: 73.78 | I19: 61.39
A20: 18 | B20: 警务辅助人员 | C20: 男 | D20: 190922025 | E20: 第一考场 | F20: 65.2 | G20: 20 | H20: 78.44 | I20: 71.82
A21: 19 | B21: 警务辅助人员 | C21: 男 | D21: 190922026 | E21: 第一考场 | F21: 52.8 | G21: 19 | H21: 74.18 | I21: 63.49
A22: 20 | B22: 警务辅助人员 | C22: 男 | D22: 190922027 | E22: 第一考场 | F22: 56 | G22: 14 | H22: 76.82 | I22: 66.41
A23: 21 | B23: 警务辅助人员 | C23: 男 | D23: 190922028 | E23: 第一考场 | F23: 56.8 | G23: 46 | H23: 76.8 | I23: 66.8
A24: 22 | B24: 警务辅助人员 | C24: 男 | D24: 190922029 | E24: 第一考场 | F24: 47.2 | G24: 42 | H24: 76.02 | I24: 61.61
A25: 23 | B25: 警务辅助人员 | C25: 男 | D25: 190922030 | E25: 第一考场 | F25: 63.2 | G25: 7 | H25: 78.14 | I25: 70.67
A26: 24 | B26: 警务辅助人员 | C26: 男 | D26: 190922031 | E26: 第二考场 | F26: 63.6 | G26: 26 | H26: 83.12 | I26: 73.36
A27: 25 | B27: 警务辅助人员 | C27: 男 | D27: 190922033 | E27: 第二考场 | F27: 56 | G27: 18 | H27: 75.84 | I27: =(F27+H27)*0.5 -> 65.92
A28: 26 | B28: 警务辅助人员 | C28: 男 | D28: 190922034 | E28: 第二考场 | F28: 57.2 | G28: 11 | H28: 78.7 | I28: =(F28+H28)*0.5 -> 67.95
A29: 27 | B29: 警务辅助人员 | C29: 男 | D29: 190922035 | E29: 第二考场 | F29: 57.2 | G29: 28 | H29: 75.28 | I29: =(F29+H29)*0.5 -> 66.24
A30: 28 | B30: 警务辅助人员 | C30: 男 | D30: 190922036 | E30: 第二考场 | F30: 59.2 | G30: 24 | H30: 85.38 | I30: =(F30+H30)*0.5 -> 72.29
A31: 29 | B31: 警务辅助人员 | C31: 男 | D31: 190922037 | E31: 第二考场 | F31: 57.6 | G31: 1 | H31: 81.62 | I31: =(F31+H31)*0.5 -> 69.61
A32: 30 | B32: 警务辅助人员 | C32: 男 | D32: 190922039 | E32: 第二考场 | F32: 56 | G32: 36 | H32: 75.88 | I32: =(F32+H32)*0.5 -> 65.94
A33: 31 | B33: 警务辅助人员 | C33: 男 | D33: 190922040 | E33: 第二考场 | F33: 62.8 | G33: 17 | H33: 79.2 | I33: =(F33+H33)*0.5 -> 71
A34: 32 | B34: 警务辅助人员 | C34: 男 | D34: 190922041 | E34: 第二考场 | F34: 56.8 | G34: 29 | H34: 76.44 | I34: =(F34+H34)*0.5 -> 66.62
A35: 33 | B35: 警务辅助人员 | C35: 男 | D35: 190922042 | E35: 第二考场 | F35: 60 | G35: 4 | H35: 82.06 | I35: =(F35+H35)*0.5 -> 71.03
A36: 34 | B36: 警务辅助人员 | C36: 男 | D36: 190922043 | E36: 第二考场 | F36: 54.2 | G36: 31 | H36: 71.46 | I36: =(F36+H36)*0.5 -> 62.83
A37: 35 | B37: 警务辅助人员 | C37: 男 | D37: 190922044 | E37: 第二考场 | F37: 42 | G37: 10 | H37: 79.78 | I37: =(F37+H37)*0.5 -> 60.89
A38: 36 | B38: 警务辅助人员 | C38: 男 | D38: 190922046 | E38: 第二考场 | F38: 59.2 | G38: 22 | H38: 75.16 | I38: =(F38+H38)*0.5 -> 67.18
A39: 37 | B39: 警务辅助人员 | C39: 男 | D39: 190922047 | E39: 第二考场 | F39: 61.2 | G39: 27 | H39: 80 | I39: 70.6
A40: 38 | B40: 警务辅助人员 | C40: 男 | D40: 190922048 | E40: 第二考场 | F40: 59.6 | G40: 12 | H40: 77.2 | I40: 68.4
A41: 39 | B41: 警务辅助人员 | C41: 男 | D41: 190922049 | E41: 第二考场 | F41: 51.6 | G41: 35 | H41: 81.86 | I41: 66.73
A42: 40 | B42: 警务辅助人员 | C42: 男 | D42: 190922050 | E42: 第二考场 | F42: 58.4 | G42: 38 | H42: 78.64 | I42: 68.52
A43: 41 | B43: 警务辅助人员 | C43: 男 | D43: 190922051 | E43: 第二考场 | F43: 63.6 | G43: 40 | H43: 79.36 | I43: 71.48
A44: 42 | B44: 警务辅助人员 | C44: 男 | D44: 190922052 | E44: 第二考场 | F44: 58.8 | G44: 23 | H44: 76.3 | I44: 67.55
A45: 43 | B45: 警务辅助人员 | C45: 男 | D45: 190922053 | E45: 第二考场 | F45: 64.8 | G45: 49 | H45: 80.98 | I45: 72.89
A46: 44 | B46: 警务辅助人员 | C46: 男 | D46: 190922054 | E46: 第二考场 | F46: 50.8 | G46: 15 | H46: 76.62 | I46: 63.71
A47: 45 | B47: 警务辅助人员 | C47: 男 | D47: 190922056 | E47: 第二考场 | F47: 80.8 | G47: 32 | H47: 81.82 | I47: =(F47+H47)*0.5 -> 81.31
A48: 46 | B48: 警务辅助人员 | C48: 男 | D48: 190922058 | E48: 第二考场 | F48: 62.4 | G48: 47 | H48: 82.62 | I48: =(F48+H48)*0.5 -> 72.51
A49: 47 | B49: 警务辅助人员 | C49: 男 | D49: 190922059 | E49: 第二考场 | F49: 60.4 | G49: 48 | H49: 79.92 | I49: =(F49+H49)*0.5 -> 70.16
A50: 48 | B50: 警务辅助人员 | C50: 男 | D50: 190922060 | E50: 第二考场 | F50: 54.4 | G50: 45 | H50: 80.16 | I50: =(F50+H50)*0.5 -> 67.28
A51: 49 | B51: 警务辅助人员 | C51: 男 | D51: 190922061 | E51: 第二考场 | F51: 66.8 | G51: 5 | H51: 82.70 | I51: =(F51+H51)*0.5 -> 74.75
